[Event "81st Italian Championship 2022"]
[Site "Cagliari"]
[Date "2022.11.13"]
[Round "2.5"]
[White "Lodici, Lorenzo"]
[Black "Carnicelli, Valerio"]
[Result "1-0"]
[ECO "D10"]
[WhiteElo "2536"]
[BlackElo "2325"]
[Annotator "TA"]
[PlyCount "77"]
[EventDate "2022.11.12"]
[EventType "tourn"]
[EventCountry "ITA"]
[SourceTitle "playchess.com"]
[Source "ChessBase"]
[SourceQuality "1"]
[TimeControl "40/6000+30:20/3000:900+30"]

{[%evp 10,77,19,21,31,22,22,22,41,33,45,34,31,31,38,31,33,41,49,34,34,25,110,16,39,16,77,67,53,60,83,69,69,36,73,61,143,108,204,213,216,194,258,120,128,118,101,94,128,132,135,147,146,151,124,134,147,118,289,290,501,496,481,464,806,794,687,457,608,593]} 1. d4 {[%emt 1:41:00]} d5 {[%emt 0:01:53]} 2. c4 {[%emt 0:00:00]} c6 {[%emt 0:00:03]} 3. e3 {[%emt 0:00:00]} Nf6 {[%emt 0:00:04]} 4. Nc3 {[%emt 0:00:00]} Bf5 {[%emt 0:00:05]} 5. cxd5 {[%emt 0:00:00]} cxd5 {[%emt 0:00:05]} 6. Qb3 {[%emt 0:00:00]} Nc6 {[%emt 0:01:06] is more profitable than 6...Bc8 at the moment. D10: Slav Defence: 3 cxd5 (without early Nf3) and 3 Nc3.} 7. Qxb7 {[%emt 0:00:00]} Bd7 $1 {[%emt 0:00:07]} 8. Qb3 {[%emt 0:00:00]} Rb8 {[%emt 0:00:23] The position is equal.} 9. Qd1 {[%emt 0:00:00]} e5 {[%emt 0:01:28]} 10. Nf3 {[%emt 0:00:00]} Bd6 {[%emt 0:06:34]} 11. dxe5 {[%emt 0:00:00]} Nxe5 {[%emt 0:00:31]} 12. Nd4 {[%emt 0:00:00]} O-O {[%emt 0:05:36]} 13. Be2 {[%emt 0:00:00]} Qe7 {[%emt 0:09:24]} 14. O-O {[%emt 0:00:00]} Rfc8 {[%emt 0:01:38]} 15. a4 {[%emt 0:00:00] [#]} Rb4 $146 {[%emt 0:18:13]} (15... Rb6 $11 {remains equal.}) ({Predecessor:} 15... Bb4 16. Bd2 Nc4 17. Bxc4 dxc4 18. Qc2 Bd6 19. h3 a6 20. Rae1 Bc5 21. Bc1 Qe5 {1-0 (38) Mamedyarov,S (2782)-Van Foreest,J (2698) chess24.com INT 2021}) 16. Ra3 {[%emt 0:00:00]} (16. Bb5 $16) 16... Nc6 {[%emt 0:09:36]} 17. Ncb5 {[%emt 0:00:00]} Bb8 {[%emt 0:10:59]} (17... Nxd4 $11 18. exd4 Bb8) 18. Rc3 $16 {[%emt 0:00:00]} Ne4 {[%emt 0:05:04]} 19. Nxc6 {[%emt 0:00:00]} Rxc6 {[%emt 0:05:17]} 20. Rxc6 {[%emt 0:00:00]} Bxc6 {[%emt 0:00:02]} 21. Qc2 {[%emt 0:00:00]} (21. Bd3 $5 {[%cal Rb2b3]}) 21... Bd7 {[%emt 0:05:06]} 22. Bd3 {[%emt 0:00:00]} Nf6 {[%emt 0:06:48]} (22... h6 $14) 23. g3 {[%emt 0:00:00]} h5 {[%emt 0:07:49]} (23... a6 $16) 24. b3 $18 {[%emt 0:00:00] Strongly threatening Ba3.} a6 {[%emt 0:07:11]} 25. Nd4 {[%emt 0:00:00] [#] Threatens to win with Ba3.} Rb7 {[%emt 0:01:07]} (25... Rb6 $142 26. a5 Rb7) 26. Nc6 {[%emt 0:00:00]} (26. Bxa6 $18 Rc7 27. Qe2) 26... Qd6 $16 {[%emt 0:02:28] Hoping for ...Rc7.} 27. Nxb8 {[%emt 0:00:00] White is more active.} Rxb8 {[%emt 0:00:25]} 28. Bb2 {[%emt 0:00:01]} Ne4 {[%emt 0:02:19]} 29. Rd1 {[%emt 0:01:41]} Ng5 {[%emt 0:00:23]} 30. h4 {[%emt 0:02:34]} Rc8 {[%emt 0:01:14] [#]} 31. Qb1 $1 $36 {[%emt 0:01:03][%mdl 2048] White is on the roll.} (31. hxg5 Rxc2 32. Bxc2 Qb4 $17) (31. Qe2 $6 Bg4 32. Qf1 Nf3+ 33. Kh1 Qb6 $11) 31... Nf3+ {[%emt 0:02:08]} 32. Kg2 {[%emt 0:00:02]} Bg4 {[%emt 0:00:05]} 33. Bh7+ {[%emt 0:04:16] A strong pair of Bishops.} Kf8 $2 {[%emt 0:00:33] A mistake that costs the game.} (33... Kh8 $16) 34. Bf5 $18 {[%emt 0:03:13] Really sharp!} ({Don't do} 34. Be4 $6 Ne1+ 35. Kf1 (35. Rxe1 dxe4 36. Qxe4 Qd2 $16) 35... Nf3 $18) 34... Rb8 {[%emt 0:00:01]} (34... Rd8 35. Bxg4 hxg4) 35. Bxg4 {[%emt 0:01:02] White is clearly winning.} hxg4 {[%emt 0:00:01]} 36. Qh7 {[%emt 0:00:22]} Rxb3 {[%emt 0:01:25]} (36... Ke7 $142 37. Qxg7 Qe6) 37. Qxg7+ {[%emt 0:00:14]} Ke7 {[%emt 0:00:42]} 38. Qxg4 {[%emt 0:00:07]} Rxb2 {[%emt 0:00:59]} 39. Qxf3 {[%emt 0:00:06] Weighted Error Value: White=0.25 (precise) /Black=0.50} 1-0

[Event "81st Italian Championship 2022"]
[Site "Cagliari"]
[Date "2022.11.13"]
[Round "2.6"]
[White "Moroni, Luca Jr"]
[Black "Lettieri, Giuseppe"]
[Result "1-0"]
[ECO "B44"]
[WhiteElo "2559"]
[BlackElo "2427"]
[Annotator "TA"]
[PlyCount "105"]
[EventDate "2022.11.12"]
[EventType "tourn"]
[EventCountry "ITA"]
[SourceTitle "playchess.com"]
[Source "ChessBase"]
[SourceQuality "1"]
[TimeControl "40/6000+30:20/3000:900+30"]

{[%evp 16,105,0,5,16,4,75,67,79,87,72,31,32,25,27,22,43,-34,4,0,0,0,0,0,0,0,0,0,0,0,0,0,0,0,37,0,0,0,0,0,0,8,66,70,70,72,66,66,59,59,62,83,232,83,145,0,629,561,600,601,813,808,729,645,850,877,850,830,828,786,1253,1290,1437,1433,4132,2831,1829,2133,910,1359,3266,3266,2399,2392,2133,1769,1769,592,29984,29985,29985,29986]} 1. Nf3 {[%emt 0:00:09]} c5 {[%emt 0:03:50]} 2. c4 {[%emt 0:00:11]} Nc6 {[%emt 0:03:16]} 3. d4 {[%emt 0:00:09]} cxd4 {[%emt 0:00:06]} 4. Nxd4 {[%emt 0:00:03]} Nf6 {[%emt 0:06:47]} 5. Nc3 {[%emt 0:00:08]} e6 {[%emt 0:00:06]} 6. e4 {[%emt 0:00:04][%cal Be2e4,Be4e5][%mdl 32]} Bb4 {[%emt 0:08:04]} 7. Nxc6 {[%emt 0:00:40]} dxc6 {[%emt 0:05:46]} 8. Qxd8+ {[%emt 0:01:01]} Kxd8 {[%emt 0:00:01]} 9. e5 $1 {[%emt 0:00:57][%mdl 4] outshines the older 9.Bd2.} Nd7 {[%emt 0:08:27] B44: Sicilian: Taimanov: 5 Nb5.} 10. Bf4 {[%emt 0:05:16]} f6 {[%emt 0:15:18] [#]} (10... Bxc3+ $11 11. bxc3 b6) 11. O-O-O $1 $16 {[%emt 0:07:00]} Ke7 {[%emt 0:05:37] White is slightly better.} 12. exf6+ {[%emt 0:06:43]} gxf6 {[%emt 0:00:06] [#]} 13. Ne4 $146 {[%emt 0:19:02] White is much more active. The black rooks are badly placed.} ({Predecessor:} 13. Be2 e5 14. Be3 Bxc3 15. bxc3 b6 16. f4 e4 17. f5 Ne5 18. Rhf1 Rg8 19. g3 {0-1 (67) Borgo,G (2362)-Cacco,C (2312) Brixen Bressanone 2019}) 13... e5 {[%emt 0:04:42]} 14. Be3 {[%emt 0:12:44]} f5 {[%emt 0:01:43]} 15. Bg5+ {[%emt 0:06:32]} Ke6 {[%emt 0:04:02]} 16. Be2 {[%emt 0:12:03]} h6 {[%emt 0:07:31]} (16... Rg8 $5 {[%cal Rf5e4]} 17. h4 h6 $15) 17. Bh4 {[%emt 0:02:01]} Be7 {[%emt 0:11:52]} 18. Bxe7 {[%emt 0:02:25]} Kxe7 {[%emt 0:00:01]} 19. Nd6 {[%emt 0:01:32]} Nc5 {[%emt 0:01:21]} 20. b4 {[%emt 0:03:51]} Ne4 {[%emt 0:00:27]} 21. Nxe4 {[%emt 0:01:08]} fxe4 {[%emt 0:00:01]} 22. Kd2 {[%emt 0:02:23]} a5 {[%emt 0:01:10]} 23. b5 {[%emt 0:00:23]} cxb5 {[%emt 0:06:41]} 24. cxb5 {[%emt 0:00:06]} Rg8 {[%emt 0:00:27]} 25. g3 {[%emt 0:02:00]} Be6 {[%emt 0:00:50]} 26. a3 {[%emt 0:01:25]} Rac8 {[%emt 0:05:21]} 27. Rc1 {[%emt 0:02:36]} Rgd8+ {[%emt 0:03:16]} 28. Ke3 {[%emt 0:00:16]} Rxc1 {[%emt 0:00:31]} ({Black should play} 28... Bb3 $11) 29. Rxc1 $11 {[%emt 0:00:09][%mdl 4096] Endgame Hoping for Rc7+. KRB-KRB} Rd4 $1 {[%emt 0:00:02]} 30. Rc7+ {[%emt 0:06:32]} Kd6 {[%emt 0:00:19]} 31. b6 {[%emt 0:01:40]} ({Reject} 31. Rxb7 Ra4 $11) 31... Bd5 {[%emt 0:01:22] White must now prevent ...Bc6.} 32. Rc3 {[%emt 0:02:13]} Bc6 {[%emt 0:01:39]} 33. h4 {[%emt 0:01:11]} Ba4 {[%emt 0:04:30] [#]} (33... Ke7 $16) 34. Rc1 {[%emt 0:04:51]} (34. f4 $1 $18 {has better winning chances.}) 34... Bb3 {[%emt 0:00:52]} ({Better is} 34... Bc6) 35. Rc3 {[%emt 0:00:54]} (35. g4 $16) 35... Bd1 $2 {[%emt 0:01:16][%mdl 8192] [#]} (35... Ba4 $11) 36. Ba6 $1 $18 {[%emt 0:01:22][%mdl 512]} Bf3 {[%emt 0:00:31]} 37. Bxb7 {[%emt 0:00:45]} Rd1 {[%emt 0:00:30]} 38. Rc6+ {[%emt 0:01:38]} Ke7 {[%emt 0:00:25]} 39. Rc7+ {[%emt 0:00:07]} Kd6 {[%emt 0:00:11][%csl Ge4][%cal Rd1d3]} 40. Bxe4 {[%emt 0:00:51]} Bxe4 {[%emt 0:00:21]} 41. Kxe4 {[%emt 0:49:05] KR-KR} Re1+ {[%emt 0:03:00]} 42. Kd3 {[%emt 0:00:00]} Ra1 {[%emt 0:01:08]} 43. Rh7 {[%emt 0:00:00]} Rxa3+ {[%emt 0:00:09]} 44. Kc4 {[%emt 0:00:00]} a4 {[%emt 0:06:39]} 45. Rxh6+ {[%emt 0:00:00]} Kd7 {[%emt 0:00:00]} 46. Rh7+ {[%emt 0:00:00]} Kc6 {[%emt 0:00:00]} 47. Kb4 {[%emt 0:00:00]} Rf3 {[%emt 0:02:26]} 48. b7 {[%emt 0:00:00]} Rxf2 {[%emt 0:00:00]} 49. Kxa4 {[%emt 0:00:00]} Rb2 {[%emt 0:00:00]} 50. h5 {[%emt 0:00:00] White threatens Rg7 and mate.} e4 {[%emt 0:00:00]} 51. Re7 {[%emt 0:00:00]} (51. Ka3 $142 Rb5 52. h6) 51... Rxb7 {[%emt 0:01:23]} 52. Rxb7 {[%emt 0:00:00]} Kxb7 {[%emt 0:00:00]} 53. Kb4 {[%emt 0:00:00] Weighted Error Value: White=0.17 (very precise) /Black=0.41} ({Not} 53. h6 e3 $11) 1-0

[Event "81st Italian Championship 2022"]
[Site "Cagliari"]
[Date "2022.11.14"]
[Round "3.1"]
[White "Lettieri, Giuseppe"]
[Black "Barp, Alberto"]
[Result "0-1"]
[ECO "C54"]
[WhiteElo "2427"]
[BlackElo "2412"]
[Annotator "TA"]
[PlyCount "130"]
[EventDate "2022.11.12"]
[EventType "tourn"]
[EventCountry "ITA"]
[SourceTitle "playchess.com"]
[Source "ChessBase"]
[SourceQuality "1"]
[TimeControl "40/6000+30:20/3000:900+30"]

{[%evp 21,130,-10,-8,-8,-8,-5,-10,-19,0,-25,-20,-60,-63,-71,-60,-71,-22,-18,-60,-73,-35,-60,0,0,0,0,0,0,0,0,10,10,10,9,21,10,30,21,41,26,41,19,39,26,26,-3,-3,-43,-29,-29,-14,-38,-38,-38,-38,-104,-104,-173,-104,-112,-104,-111,-114,-418,-418,-418,-418,-410,-401,-759,-725,-29977,-29978,-2745,-2331,-1495,-387,-536,-512,-29974,-29975,-29975,-29976,-29976,-29977,-29981,-29982,-29982,-29983,-29983,-29975,-29987,-29986,-29986,-29987,-29986,-29987,-29990,-29991,-29991,-29992,-29992,-29993,-29993,-29994,-29994,-29995,-29997,-29998,-29998,-29999]} 1. e4 {[%emt 0:00:02]} e5 {[%emt 0:05:50]} 2. Nf3 {[%emt 0:00:07]} Nc6 {[%emt 0:00:07]} 3. Bc4 {[%emt 0:00:06]} Nf6 {[%emt 0:05:14]} 4. d3 {[%emt 0:01:58]} Bc5 {[%emt 0:00:23]} 5. c3 {[%emt 0:03:17]} d6 {[%emt 0:00:56]} 6. b4 {[%emt 0:07:09]} Bb6 {[%emt 0:00:17]} 7. a4 {[%emt 0:00:28]} a5 {[%emt 0:00:45]} 8. b5 {[%emt 0:00:06]} Ne7 {[%emt 0:01:24]} 9. O-O {[%emt 0:08:16]} Ng6 {[%emt 0:04:13]} 10. Nbd2 {[%emt 0:14:01][%cal Bb1d2,Bd2c4,Bc4e3][%mdl 32]} O-O {[%emt 0:01:50]} 11. Bb3 {[%emt 0:03:43]} c6 {[%emt 0:10:08]} 12. Nc4 {[%emt 0:11:37] C54: Giuoco Piano: 4 c3 Nf6, main lines with 5 d4 and 5 d3.} Bc7 {[%emt 0:00:20]} 13. Re1 {[%emt 0:03:24]} Re8 {[%emt 0:05:02]} 14. Ne3 {[%emt 0:10:48] The position is equal.} d5 {[%emt 0:04:57][%cal Bd6d5,Bd5d4][%mdl 32]} 15. Qc2 {[%emt 0:02:28]} h6 {[%emt 0:02:07]} 16. c4 {[%emt 0:10:40][%cal Rc4d5]} d4 {[%emt 0:02:21]} 17. Nf5 {[%emt 0:03:44] [#]} c5 $146 {[%emt 0:04:05]} ({Predecessor:} 17... Bxf5 18. exf5 Ne7 19. c5 Nxf5 20. Bd2 Nd7 21. b6 Bb8 22. Re4 Ne7 {½-½ (24) Zorila,M-Garcia Rodriguez,I Liape email 2003}) 18. g3 {[%emt 0:03:59]} Bxf5 {[%emt 0:20:56]} (18... Nh7 $17) 19. exf5 $11 {[%emt 0:00:01]} Ne7 {[%emt 0:00:10]} 20. Ba3 {[%emt 0:07:49]} b6 $1 {[%emt 0:07:51]} 21. Nxe5 {[%emt 0:00:24]} Nxf5 {[%emt 0:00:34]} (21... Qc8 $15) 22. Nf3 $1 {[%emt 0:05:29]} Qd7 {[%emt 0:01:31]} 23. Rxe8+ {[%emt 0:00:56]} Rxe8 {[%emt 0:00:07]} 24. Re1 {[%emt 0:00:08]} Rxe1+ {[%emt 0:11:04]} 25. Nxe1 {[%emt 0:00:01]} Qe6 {[%emt 0:00:25]} 26. Qd2 {[%emt 0:01:18]} Ne7 {[%emt 0:05:46]} 27. Bd1 {[%emt 0:00:22]} Ng6 {[%emt 0:01:29]} 28. Qe2 {[%emt 0:03:58]} Qf5 {[%emt 0:01:16]} 29. Bc1 {[%emt 0:00:39]} Qh3 {[%emt 0:02:36]} 30. Qf1 {[%emt 0:00:33]} Qf5 {[%emt 0:00:19]} 31. h3 {[%emt 0:03:11]} h5 {[%emt 0:01:41]} 32. f4 {[%emt 0:00:26]} Qd7 {[%emt 0:01:20]} 33. h4 {[%emt 0:02:01]} Ne7 {[%emt 0:00:26]} 34. Bf3 {[%emt 0:01:27]} Nf5 {[%emt 0:01:14]} 35. Kg2 {[%emt 0:00:29]} Ng4 {[%emt 0:03:27]} 36. Bxg4 {[%emt 0:00:37]} hxg4 {[%emt 0:00:02]} 37. Qe2 {[%emt 0:00:20]} Qe6 {[%emt 0:01:01]} 38. Qxe6 {[%emt 0:00:43]} ({Better is} 38. Qf1 $15) 38... fxe6 $15 {[%emt 0:00:01][%mdl 4096] Endgame KBN-KBN} 39. Kf2 {[%emt 0:00:09]} (39. Kh2 $17) 39... Kf7 {[%emt 0:00:53]} (39... e5 $19 {Strongly threatening ...exf4.} 40. fxe5 Bxe5) 40. Ng2 {[%emt 0:00:10]} g6 {[%emt 0:01:15] Black is more active.} 41. Bd2 {[%emt 0:49:30]} Ng7 {[%emt 0:05:09]} 42. Bc1 $2 {[%emt 0:00:00][%mdl 8192] This costs White the game.} (42. Kg1 $17 {is tougher.}) 42... Nh5 $1 $19 {[%emt 0:00:39]} 43. Bd2 {[%emt 0:00:00]} Kf6 $1 {[%emt 0:00:25]} 44. Be1 {[%emt 0:00:00]} e5 {[%emt 0:04:01]} 45. Kg1 {[%emt 0:00:00]} (45. fxe5+ $142 Bxe5 46. Bd2 Bxg3+ 47. Ke2) 45... exf4 {[%emt 0:01:27]} 46. Nxf4 {[%emt 0:00:00]} Bxf4 {[%emt 0:18:45]} 47. gxf4 {[%emt 0:00:00] KB-KN} Ke6 {[%emt 0:00:04] Threatens to win with ...Kf5.} ({Inferior is} 47... Nxf4 48. Bxa5 $1 Nxd3 49. Bxb6 $11) 48. Bd2 {[%emt 0:00:00]} Ng3 $2 {[%emt 0:00:00]} (48... Kf5 {( -> ...g3)} 49. Kh2 g3+ 50. Kh3 Nxf4+ 51. Kxg3 Nxd3) 49. f5+ {[%emt 0:00:00]} gxf5 {[%emt 0:06:53][%cal Bg6f5,Bf5f4,Bf4f3][%mdl 32]} 50. Kf2 {[%emt 0:00:00]} (50. Bg5 $19 Kd7 51. Bf6) 50... Nh5 {[%emt 0:00:00] Black mates.} 51. Bg5 {[%emt 0:00:00] [#]} Kd7 $1 {[%emt 0:01:12]} 52. Kg2 {[%emt 0:00:00]} f4 {[%emt 0:00:00]} 53. Kf2 {[%emt 0:00:00]} f3 {[%emt 0:00:00]} 54. Bh6 {[%emt 0:00:00]} Ke6 {[%emt 0:00:00]} 55. Bd2 {[%emt 0:00:00]} Ke5 {[%emt 0:02:34]} 56. Bg5 {[%emt 0:00:00]} Nf4 {[%emt 0:00:00]} 57. Bd8 {[%emt 0:00:00]} Nxd3+ {[%emt 0:00:00]} 58. Kg3 {[%emt 0:00:40]} Ke4 {[%emt 0:02:22]} 59. h5 {[%emt 0:01:24]} f2 {[%emt 0:01:19]} 60. Kg2 {[%emt 0:00:00]} g3 {[%emt 0:03:35]} 61. Bc7 {[%emt 0:03:50]} Ne1+ {[%emt 0:02:03]} 62. Kf1 {[%emt 0:00:11]} Kf3 {[%emt 0:00:12][%csl Ge1,Gf3][%cal Rg3g2]} 63. Bxg3 {[%emt 0:00:10]} Kxg3 {[%emt 0:00:05]} 64. h6 {[%emt 0:00:02]} Kf3 {[%emt 0:00:25]} 65. h7 {[%emt 0:00:10]} Ng2 {[%emt 0:00:04] Weighted Error Value: White=0.44/Black=0.23 (precise)} 0-1

[Event "81st Italian Championship 2022"]
[Site "Cagliari"]
[Date "2022.11.14"]
[Round "3.2"]
[White "Carnicelli, Valerio"]
[Black "Moroni, Luca Jr"]
[Result "0-1"]
[ECO "B33"]
[WhiteElo "2325"]
[BlackElo "2559"]
[Annotator "TA"]
[PlyCount "92"]
[EventDate "2022.11.12"]
[EventType "tourn"]
[EventCountry "ITA"]
[SourceTitle "playchess.com"]
[Source "ChessBase"]
[SourceQuality "1"]
[TimeControl "40/6000+30:20/3000:900+30"]

{[%evp 9,92,31,66,43,36,34,32,25,37,42,47,37,27,13,20,22,38,13,18,0,17,4,24,-32,0,-10,-8,-6,-9,-15,0,0,0,-6,0,0,0,0,0,10,0,-48,-35,-48,-46,-35,-11,-15,-10,-22,0,0,0,0,33,0,0,-70,0,-16,0,-89,-87,-103,-93,-94,-105,-115,-120,-113,-112,-105,-111,-114,-118,-136,-146,-135,-130,-319,-247,-636,-688,-6956,-5702]} 1. e4 {[%emt 0:00:55]} c5 {[%emt 0:00:02]} 2. Nf3 {[%emt 0:00:05]} Nc6 {[%emt 0:00:04]} 3. d4 {[%emt 0:00:06]} cxd4 {[%emt 0:00:05]} 4. Nxd4 {[%emt 0:00:04]} Nf6 {[%emt 0:00:05]} 5. Nc3 {[%emt 0:00:05]} h5 {[%emt 0:00:03]} 6. Bc4 {[%emt 0:15:54] B33: Sicilian: Pelikan and Sveshnikov Variations.} e6 {[%emt 0:07:18]} 7. O-O {[%emt 0:02:25]} Qc7 {[%emt 0:07:56] Against Bf4} 8. h3 {[%emt 0:09:19] White is slightly better.} a6 {[%emt 0:17:23]} 9. a4 {[%emt 0:00:34] [#]} b6 $146 {[%emt 0:06:54]} ({Predecessor:} 9... Nxd4 10. Qxd4 Bc5 11. Qd3 b6 12. Re1 Bb7 13. Be3 Bd6 14. Bd4 Bh2+ 15. Kh1 Be5 16. Bxe5 Qxe5 {½-½ (56) He,A (2347)-Boskovic,D (2451) Chess.com INT 2021}) 10. Re1 {[%emt 0:03:14]} Ne5 {[%emt 0:11:08]} 11. Bf1 {[%emt 0:02:39]} Bb7 {[%emt 0:05:47]} 12. Bf4 {[%emt 0:04:39]} Bc5 {[%emt 0:06:48]} 13. Bh2 {[%emt 0:21:41]} Rc8 {[%emt 0:07:05]} 14. Qd2 {[%emt 0:04:29][%cal Oc3d5] next Nd5! is good for White.} O-O {[%emt 0:01:41]} 15. Rad1 {[%emt 0:02:48]} d6 {[%emt 0:03:27]} 16. Qg5 {[%emt 0:09:28]} ({White should try} 16. Nb3 $11) 16... Ng6 {[%emt 0:06:51]} 17. Rd2 {[%emt 0:06:11][%cal Od4e6] Nxe6! is the strong threat.} Rfe8 {[%emt 0:02:29]} 18. Rdd1 {[%emt 0:11:23]} Bb4 {[%emt 0:01:35]} 19. Re3 {[%emt 0:01:29]} Qc5 {[%emt 0:03:03]} 20. Qxc5 {[%emt 0:02:17]} bxc5 {[%emt 0:03:29]} 21. Nde2 {[%emt 0:00:14]} d5 {[%emt 0:01:25]} 22. exd5 {[%emt 0:00:31]} exd5 {[%emt 0:00:06]} 23. Rxe8+ {[%emt 0:00:11]} Rxe8 {[%emt 0:00:01]} 24. Na2 {[%emt 0:02:18]} Ba5 {[%emt 0:00:21]} 25. b4 {[%emt 0:01:47]} (25. Nec1 $11 {might be stronger.}) 25... cxb4 $15 {[%emt 0:01:11]} 26. Nd4 {[%emt 0:00:02]} Ne4 {[%emt 0:01:11]} 27. f3 {[%emt 0:02:07]} Bb6 {[%emt 0:04:12][%cal Ob6c5]} 28. a5 $1 {[%emt 0:01:19]} (28. fxe4 Rxe4 29. Kh1 Rxd4 $15) 28... Bc5 {[%emt 0:00:29][%cal Og6e5]} 29. Bc7 $1 {[%emt 0:01:03]} ({Don't play} 29. fxe4 Rxe4 30. Kh1 Rxd4 31. Rxd4 Bxd4 32. Nxb4 Bc3 33. Bxa6 Bxa6 34. Nxa6 Bxa5 $17) 29... Nc3 {[%emt 0:05:47]} 30. Nxc3 {[%emt 0:00:02]} bxc3 {[%emt 0:00:04]} 31. Bb6 {[%emt 0:00:16]} Bd6 {[%emt 0:01:20]} 32. Rd3 {[%emt 0:02:43][%mdl 1024] White has compensation.} Rc8 {[%emt 0:01:29]} 33. Ne2 {[%emt 0:02:09]} (33. Nf5 $11 Bc5+ 34. Kh1) 33... Bb4 {[%emt 0:01:28]} ({Black should play} 33... Ne5 $1 $15 34. Rxc3 Nc4) 34. Rd4 {[%emt 0:00:22]} (34. Rd1 $5 {[%cal Rd1b1]}) 34... Bd6 {[%emt 0:01:30]} (34... Bf8 $11) 35. Rd3 $17 {[%emt 0:00:01] [#]} Ne5 $1 {[%emt 0:00:56]} 36. Rxc3 {[%emt 0:00:10]} Nc4 {[%emt 0:00:05]} 37. Bf2 {[%emt 0:03:27]} Nxa5 {[%emt 0:00:41] Black is more active.} 38. Rxc8+ {[%emt 0:00:02]} Bxc8 {[%emt 0:00:05]} 39. Nc3 {[%emt 0:00:18]} Bb7 {[%emt 0:00:11]} 40. Na4 {[%emt 0:00:24]} Nc4 {[%emt 0:03:50]} 41. Nc5 {[%emt 0:08:17] [#]} Bc8 {[%emt 0:02:42]} 42. g4 {[%emt 0:04:47]} a5 {[%emt 0:15:53][%cal Ba6a5,Ba5a4][%mdl 32]} 43. Bd4 {[%emt 0:03:02]} h4 {[%emt 0:03:42]} 44. Bg2 $2 {[%emt 0:04:50]} (44. Kf2 $17) 44... Na3 $19 {[%emt 0:03:34]} 45. Nb3 $2 {[%emt 0:08:40]} (45. Bf1) 45... Nxc2 {[%emt 0:00:32]} 46. Bc5 {[%emt 0:00:00]} a4 {[%emt 0:00:00] Weighted Error Value: White=0.37/Black=0.08 (flawless)} 0-1

[Event "81st Italian Championship 2022"]
[Site "Cagliari"]
[Date "2022.11.14"]
[Round "3.3"]
[White "Godena, Michele"]
[Black "Lodici, Lorenzo"]
[Result "1-0"]
[ECO "B22"]
[WhiteElo "2463"]
[BlackElo "2536"]
[Annotator "TA"]
[PlyCount "63"]
[EventDate "2022.11.12"]
[EventType "tourn"]
[EventCountry "ITA"]
[SourceTitle "playchess.com"]
[Source "ChessBase"]
[SourceQuality "1"]
[TimeControl "40/6000+30:20/3000:900+30"]

{[%evp 9,63,23,25,22,26,23,27,28,27,24,23,28,24,27,24,20,14,21,36,26,43,43,45,37,38,35,51,29,48,51,50,54,124,126,192,198,159,185,205,202,385,358,364,355,447,448,541,557,556,511,600,581,2402,2298,1690,1646]} 1. e4 {[%emt 0:00:09]} c5 {[%emt 0:00:44]} 2. c3 {[%emt 0:01:44]} e5 {[%emt 0:00:06]} 3. Nf3 {[%emt 0:00:13]} Nc6 {[%emt 0:00:06]} 4. Bc4 {[%emt 0:01:20]} Nf6 {[%emt 0:00:06]} 5. d3 {[%emt 0:03:38]} Be7 {[%emt 0:00:07]} 6. Bg5 {[%emt 0:09:01] B22: Sicilian: 2 c3.} h6 {[%emt 0:08:12]} 7. Bxf6 {[%emt 0:00:23]} Bxf6 {[%emt 0:00:05]} 8. Nbd2 {[%emt 0:00:52][%cal Bb1d2,Bd2f1,Bf1e3][%mdl 32] [#] White has an edge.} Rb8 $146 {[%emt 0:20:36]} ({Predecessor:} 8... O-O 9. Nf1 a6 10. a4 d6 11. Ne3 Be6 12. O-O Na5 13. Bd5 Rb8 14. Qc2 Bd7 {½-½ (42) Wakeham,M (1530)-Cornes,C (1848) ICCF email 2017}) 9. a4 {[%emt 0:12:37]} a6 {[%emt 0:01:14]} 10. Nf1 {[%emt 0:03:20]} b5 {[%emt 0:02:07]} 11. axb5 {[%emt 0:00:15]} axb5 {[%emt 0:00:05]} 12. Ba2 {[%emt 0:01:43]} d6 {[%emt 0:08:13]} 13. Ne3 {[%emt 0:00:44]} g6 {[%emt 0:00:12]} 14. h4 {[%emt 0:31:11][%cal Bh2h4,Bh4h5][%mdl 32]} Kf8 {[%emt 0:06:29]} 15. h5 {[%emt 0:13:43]} Kg7 {[%emt 0:03:20]} 16. Bd5 {[%emt 0:01:49]} Bd7 {[%emt 0:14:03]} 17. Qb3 {[%emt 0:07:18]} Qe8 {[%emt 0:07:23]} 18. Ra6 {[%emt 0:04:50]} Bd8 {[%emt 0:03:51]} 19. O-O {[%emt 0:01:48][%cal Od3d4,Bh1f1,Bf1a1,Ba1a7][%mdl 32]} Rf8 {[%emt 0:02:29]} 20. Rfa1 {[%emt 0:01:09]} Kh8 {[%emt 0:00:49]} (20... Bb6 $14) 21. Ra8 $16 {[%emt 0:03:04] Threatens to win with Bxc6.} Bc7 {[%emt 0:02:59]} (21... Bf6 $16 22. R8a6 Bg7) 22. Rxb8 $18 {[%emt 0:00:33]} Nxb8 {[%emt 0:00:50]} 23. Ra7 $1 $36 {[%emt 0:01:00][%mdl 2048] Black is under strong pressure. White is much more active. The black rooks are badly placed.} Qd8 {[%emt 0:01:40] [#]} 24. Qa2 $1 {[%emt 0:02:54]} ({Don't do} 24. Bxf7 $6 c4 25. dxc4 Rxf7 $16) 24... Nc6 $2 {[%emt 0:03:37]} (24... Kg7 25. hxg6 fxg6) 25. Bxc6 {[%emt 0:02:49]} Bxc6 {[%emt 0:00:02]} 26. hxg6 {[%emt 0:00:04]} fxg6 {[%emt 0:00:09][%cal Oc5c4] [#]} 27. Qe6 {[%emt 0:00:11] Inhibits c4. White is clearly winning.} Rf6 {[%emt 0:09:25]} 28. Qh3 {[%emt 0:00:05]} h5 {[%emt 0:00:03]} 29. Ng5 {[%emt 0:02:06] Ng4 is the strong threat.} Qb8 {[%emt 0:02:08]} 30. Ra6 {[%emt 0:00:36]} Bb7 {[%emt 0:01:49] [#]} 31. Qd7 {[%emt 0:00:32][%csl Gg5][%cal Rd7h7]} Qg8 {[%emt 0:00:17] Prevents Qh7+.} 32. Ra7 {[%emt 0:00:28] Weighted Error Value: White=0.02 (flawless) /Black=0.34} 1-0